[Event "16th HSG Open-A 2022"]
[Site "Hilversum"]
[Date "2022.06.19"]
[Round "6.3"]
[White "Leenhouts, Koen"]
[Black "Lanchava, Tea"]
[Result "1-0"]
[ECO "A41"]
[WhiteElo "2416"]
[BlackElo "2232"]
[Annotator "TA"]
[PlyCount "82"]
[EventDate "2022.06.17"]
[EventCountry "NED"]
[SourceTitle "playchess.com"]
[Source "ChessBase"]
[SourceQuality "1"]
[TimeControl "6600+10"]

{[%evp 9,82,70,81,65,100,93,113,120,167,156,160,157,168,158,163,163,167,154,222,214,233,214,247,232,254,247,283,284,274,267,409,193,192,200,203,200,216,200,211,207,269,197,567,580,718,720,722,720,710,699,688,687,739,762,737,750,1203,1043,1065,1056,2070,2054,1788,1083,1082,585,585,583,568,559,587,585,566,562,528]} 1. d4 {[%emt 0:01:13]} d6 {[%emt 0:00:17]} 2. c4 {[%emt 0:00:54]} g6 {[%emt 0:00:09]} 3. e4 {[%emt 0:00:16]} Nd7 {[%emt 0:00:26]} 4. Nc3 {[%emt 0:01:15]} c6 {[%emt 0:01:33]} 5. Be3 {[%emt 0:02:37]} e5 {[%emt 0:04:24]} 6. d5 {[%emt 0:05:38] A41: 1 d4 d6: Tartakower System and Modern Defence.} c5 {[%emt 0:00:39]} 7. Bd3 {[%emt 0:04:23] [#]} Nh6 $146 {[%emt 0:02:33]} ({Predecessor:} 7... h5 8. Qd2 Bh6 9. Nge2 Bxe3 10. Qxe3 Kf8 11. O-O-O Kg7 12. g3 Nh6 13. f4 a6 {0-1 (43) Kovac,L (2096)-Kireev,A (2360) Trnava 2011}) 8. h4 {[%emt 0:04:37][%cal Bh2h4,Bh4h5][%mdl 32] White is better.} Rg8 {[%emt 0:03:08]} (8... Nb6 $16) 9. g4 $18 {[%emt 0:02:29] Black must now prevent g5.} f6 {[%emt 0:00:34]} 10. f3 {[%emt 0:02:13] White is more active.} Nf7 {[%emt 0:02:37]} 11. h5 {[%emt 0:04:35]} Be7 {[%emt 0:13:03]} 12. Nge2 {[%emt 0:01:26]} Nf8 {[%emt 0:01:18]} 13. a3 {[%emt 0:02:16]} f5 {[%emt 0:16:10]} (13... Bd7 $16 14. Kf2 b6) 14. hxg6 {[%emt 0:02:14]} hxg6 {[%emt 0:00:05]} 15. exf5 {[%emt 0:00:28]} (15. gxf5 a6 16. Qc2 Bg5) 15... gxf5 {[%emt 0:00:12]} 16. gxf5 {[%emt 0:00:05]} (16. Bxf5 $6 Bxf5 17. gxf5 Bg5) 16... Bh4+ {[%emt 0:03:12]} 17. Kd2 {[%emt 0:00:32]} Bg5 {[%emt 0:00:30]} 18. Bxg5 {[%emt 0:03:04]} ({Don't take} 18. f4 Bf6 19. Qb3 b6 $18) 18... Rxg5 {[%emt 0:08:09]} 19. Ne4 {[%emt 0:00:38]} Rg8 {[%emt 0:03:29]} (19... Rxf5 $142 20. Kc2 b5) 20. Rg1 {[%emt 0:08:35]} (20. Rh5 $142) 20... Rxg1 {[%emt 0:05:35]} 21. Qxg1 {[%emt 0:00:09]} Bxf5 {[%emt 0:00:24] [#]} 22. Nxc5 $1 {[%emt 0:02:36][%mdl 512]} Bxd3 {[%emt 0:18:04]} 23. Nxd3 {[%emt 0:00:04]} Qf6 {[%emt 0:00:18]} 24. Nc3 {[%emt 0:01:20][%cal Be2c3,Bc3e4,Be4f6][%mdl 32]} Ng5 {[%emt 0:03:24]} 25. Ne4 {[%emt 0:05:22]} Nxf3+ $2 {[%emt 0:00:19]} (25... Nxe4+ {is more resistant.} 26. fxe4 Qh6+ 27. Kc2 b6) 26. Ke3 {[%emt 0:01:17] White is clearly winning.} Nxg1 {[%emt 0:08:32]} 27. Nxf6+ {[%emt 0:00:08]} Kf7 {[%emt 0:00:08]} 28. Ne4 {[%emt 0:00:19]} ({Not} 28. Rxg1 Kxf6 29. Nf2 Kf7 $18) 28... Nh3 {[%emt 0:00:17]} 29. Nxd6+ {[%emt 0:00:27]} Ke7 {[%emt 0:00:30]} 30. Nxb7 {[%emt 0:00:30]} Nd7 {[%emt 0:00:22]} 31. Rh1 {[%emt 0:01:32]} Ng5 {[%emt 0:00:12]} 32. c5 {[%emt 0:07:35][%cal Bc4c5,Bc5c6][%mdl 32]} Rf8 {[%emt 0:03:13]} 33. c6 {[%emt 0:01:03]} Rf3+ {[%emt 0:01:00]} 34. Ke2 {[%emt 0:01:42]} e4 {[%emt 0:00:05]} 35. d6+ {[%emt 0:00:59]} Ke6 {[%emt 0:00:33]} 36. Ndc5+ {[%emt 0:01:16]} Nxc5 {[%emt 0:01:46]} 37. Nxc5+ {[%emt 0:00:09]} Kxd6 {[%emt 0:01:01] [#]} 38. Nxe4+ $1 {[%emt 0:00:07][%mdl 512]} Kxc6 {[%emt 0:00:04]} 39. Nxg5 {[%emt 0:00:13] Threatening mate with Rh6+.} Rg3 {[%emt 0:00:26]} 40. Ne4 {[%emt 0:00:06]} Rg2+ {[%emt 0:00:10]} 41. Nf2 {[%emt 0:00:05]} Kb5 {[%emt 0:00:01] Black did not feel at home in the position after the opening.  Weighted Error Value: White=0.17 (very precise) /Black=0.51} 1-0

[Event "16th HSG Open-A 2022"]
[Site "Hilversum"]
[Date "2022.06.19"]
[Round "6.4"]
[White "Pham, Khoi"]
[Black "Elgersma, Onno"]
[Result "1-0"]
[ECO "B12"]
[WhiteElo "2291"]
[BlackElo "2303"]
[Annotator "TA"]
[PlyCount "57"]
[EventDate "2022.06.17"]
[EventCountry "NED"]
[SourceTitle "playchess.com"]
[Source "ChessBase"]
[SourceQuality "1"]
[TimeControl "6600+10"]

{[%evp 9,57,15,19,9,20,2,4,4,14,7,8,0,0,0,0,6,15,0,0,-9,0,0,0,0,7,0,7,0,0,-7,0,-22,-24,-19,0,0,45,46,145,127,112,134,480,477,670,648,535,352,1268,1255]} 1. e4 {[%emt 0:00:02]} c6 {[%emt 0:00:10]} 2. d4 {[%emt 0:00:06]} d5 {[%emt 0:00:05]} 3. e5 {[%emt 0:00:04]} Bf5 {[%emt 0:00:04]} 4. h4 {[%emt 0:00:05]} h5 {[%emt 0:00:27]} 5. Bd3 {[%emt 0:00:05]} Bxd3 {[%emt 0:00:04]} 6. Qxd3 {[%emt 0:00:05][%cal Oe5e6] e6! is the strong threat. B12: Caro-Kann: Advance Variation.} Qa5+ {[%emt 0:00:04]} 7. Nd2 {[%emt 0:00:07][%cal Oe5e6] aiming for e6!} e6 {[%emt 0:00:04]} 8. Ngf3 {[%emt 0:00:05] The position is equal.} Nh6 {[%emt 0:00:10]} 9. O-O {[%emt 0:00:07]} Nf5 {[%emt 0:00:06]} 10. Nb3 $1 {[%emt 0:00:04][%mdl 4] is more profitable than 10.c4 at the moment.} Qa6 {[%emt 0:00:04]} 11. Qd1 {[%emt 0:00:05]} b6 {[%emt 0:00:23]} 12. Bg5 {[%emt 0:01:18]} c5 {[%emt 0:01:47]} 13. c3 {[%emt 0:03:05]} Nc6 {[%emt 0:00:55]} 14. dxc5 {[%emt 0:00:57]} Bxc5 {[%emt 0:00:50]} 15. Nxc5 {[%emt 0:01:15]} bxc5 {[%emt 0:00:07]} 16. Re1 {[%emt 0:00:15][%cal Bf1e1,Be1e3,Be3d3][%mdl 32] [#]} Qb7 $146 {[%emt 0:21:00]} ({Predecessor:} 16... Rc8 17. b3 Rc7 18. Rc1 Qxa2 19. Ra1 Qb2 20. Bd2 O-O 21. Rb1 Qa2 22. Ra1 Qb2 23. Rb1 Qa2 24. Ra1 Qb2 25. Rb1 {½-½ (25) Dubov,D (2714)-Anton Guijarro,D (2669) Terme Catez 2021}) 17. b3 {[%emt 0:02:20]} Qd7 {[%emt 0:00:24]} 18. Nd2 {[%emt 0:03:25]} a5 {[%emt 0:03:44][%cal Ba7a5,Ba5a4][%mdl 32]} 19. Nf1 {[%emt 0:08:14]} a4 {[%emt 0:06:52]} 20. Ne3 {[%emt 0:07:00]} Nxe3 {[%emt 0:01:40]} 21. Rxe3 {[%emt 0:00:12]} d4 {[%emt 0:04:02]} 22. cxd4 {[%emt 0:01:42]} cxd4 {[%emt 0:00:29]} (22... Qxd4 $5 {[%cal Ra4b3]} 23. Rc1 Qxd1+ 24. Rxd1 axb3 25. axb3 O-O $11) 23. Rd3 {[%emt 0:02:37]} Qd5 {[%emt 0:18:29]} (23... Ra5 $14) 24. Rc1 $16 {[%emt 0:08:22] And now b4 would win.} axb3 {[%emt 0:00:54]} 25. axb3 {[%emt 0:00:13][%cal Ba2b3,Bb3b4,Bb4b5][%mdl 32]} Qe4 $2 {[%emt 0:18:14][%mdl 8192] [#] A mistake that costs the game.} (25... Rb8 $16) 26. Rc5 $1 $18 {[%emt 0:03:49]} Ra6 {[%emt 0:19:54]} (26... O-O $142 27. f3 Qf5) 27. b4 {[%emt 0:02:07] Strongly threatening b5.} O-O {[%emt 0:07:22]} 28. b5 {[%emt 0:00:47]} Nb4 {[%emt 0:01:41]} (28... Ra5 29. Rxc6 Rxb5) 29. Rxd4 {[%emt 0:00:32] Weighted Error Value: White=0.04 (flawless) /Black=0.47} 1-0

[Event "16th HSG Open-A 2022"]
[Site "Hilversum"]
[Date "2022.06.19"]
[Round "6.5"]
[White "De Winter, Arthur"]
[Black "Van Foreest, Machteld"]
[Result "0-1"]
[ECO "B40"]
[WhiteElo "2090"]
[BlackElo "2287"]
[Annotator "TA"]
[PlyCount "64"]
[EventDate "2022.06.17"]
[EventCountry "NED"]
[SourceTitle "playchess.com"]
[Source "ChessBase"]
[SourceQuality "1"]
[TimeControl "6600+10"]

{[%evp 12,64,22,18,27,3,30,32,12,20,17,22,31,9,44,17,20,12,8,0,0,-7,0,0,-6,-4,18,0,0,-18,-16,-33,0,-21,-21,-22,-21,-32,-18,-18,0,-6,0,0,0,0,0,0,0,-869,-834,-775,-765,-29997,-29998]} 1. e4 {[%emt 0:00:03]} c5 {[%emt 0:00:19]} 2. Nf3 {[%emt 0:00:08]} e6 {[%emt 0:00:06]} 3. b3 {[%emt 0:00:07]} b6 {[%emt 0:00:09]} 4. Bb2 {[%emt 0:00:15]} Bb7 {[%emt 0:01:10]} 5. Nc3 {[%emt 0:00:12]} Nc6 {[%emt 0:12:23]} 6. d4 {[%emt 0:06:03]} cxd4 {[%emt 0:01:09]} 7. Nxd4 {[%emt 0:00:05]} Nf6 {[%emt 0:13:18] B40: Sicilian: 2...e6, Unusual lines.} 8. Nxc6 {[%emt 0:11:00]} dxc6 {[%emt 0:02:48]} 9. e5 {[%emt 0:16:11] [#]} Qxd1+ $146 {[%emt 0:04:17] White is slightly better.} ({Predecessor:} 9... Nd5 10. Ne4 Qh4 11. Qf3 O-O-O 12. a3 c5 13. Rd1 Nb4 14. Rxd8+ Kxd8 15. Bd3 Nxd3+ 16. cxd3 {½-½ (45) Toman,A (2205)-Bosak,Z (2250) ICCF email 2003}) 10. Rxd1 {[%emt 0:00:18]} Nd5 {[%emt 0:00:05]} 11. Ne4 {[%emt 0:01:15][%cal Bc3e4,Be4d2,Bd2c4,Bc4a5][%mdl 32]} O-O-O {[%emt 0:01:52]} 12. a3 {[%emt 0:06:01]} Be7 {[%emt 0:04:39]} 13. g3 {[%emt 0:05:49]} c5 {[%emt 0:06:13][%cal Od5c3] [#] And now ...Nc3! would win.} 14. Bg2 {[%emt 0:00:38]} f5 {[%emt 0:02:15]} (14... Nc7 {with more complications.} 15. O-O Nb5 16. f4 Nd4) 15. Nd2 {[%emt 0:06:57]} Kb8 {[%emt 0:08:18][%cal Od5e3]} 16. Rg1 {[%emt 0:03:05]} b5 {[%emt 0:02:01]} 17. c4 {[%emt 0:10:57]} bxc4 {[%emt 0:02:33]} 18. Nxc4 {[%emt 0:00:05]} Rd7 {[%emt 0:05:05]} (18... Kc7 {feels hotter.} 19. Nd6 Rb8 20. b4 cxb4 21. axb4 Bc6) 19. Na5 {[%emt 0:14:10]} Ba8 {[%emt 0:04:06]} 20. Ke2 {[%emt 0:01:40]} Rhd8 {[%emt 0:02:54][%cal Bh8d8,Bd8d2,Bd2d3][%mdl 32]} 21. Rc1 {[%emt 0:03:03]} Bg5 {[%emt 0:09:56]} (21... Ne3 $5 22. Kxe3 Rd3+ 23. Ke2 Rd2+ 24. Ke1 Rxb2 25. Bxa8 Kxa8 $15) 22. Rxc5 {[%emt 0:05:52] [#] Hoping for Bc1.} Nf4+ $1 {[%emt 0:10:36][%mdl 64] Discovered Attack} 23. gxf4 {[%emt 0:00:17]} Rd2+ {[%emt 0:00:05]} 24. Ke1 $1 {[%emt 0:02:31]} Rd1+ {[%emt 0:02:52][%mdl 1024] Black has compensation.} 25. Ke2 {[%emt 0:00:03]} R8d2+ {[%emt 0:00:32]} 26. Ke3 {[%emt 0:00:05]} Rd3+ {[%emt 0:00:46]} 27. Ke2 {[%emt 0:00:05]} R1d2+ $40 {[%emt 0:00:12][%cal Bd1d2,Bd2f2,Bf2h2][%mdl 160] White needs to defend precisely.} ({Don't play} 27... R3d2+ 28. Ke3 Bxf4+ 29. Kxf4 $17) 28. Ke1 $1 {[%emt 0:01:40]} Bh4 {[%emt 0:00:59]} 29. Rb5+ {[%emt 0:04:53]} Kc8 {[%emt 0:00:13] ( -> ...Rd1+). Really sharp!} 30. Bxa8 $4 {[%emt 0:00:09][%mdl 8192]} (30. Rc5+ $11 Kd8 31. Bxa8 Rd1+ 32. Ke2 R1d2+ 33. Ke1 (33. Kf1 {gets mated.} Rxf2+ 34. Ke1 Rxh2+) 33... Rd1+ 34. Ke2 R1d2+ 35. Ke1 (35. Kf1 Rxf2+ 36. Ke1 Rxh2+)) 30... Rxf2 $19 {[%emt 0:03:51]} 31. Rc5+ {[%emt 0:05:05]} Kb8 {[%emt 0:00:37]} 32. Bb7 {[%emt 0:03:27]} Rxh2+ {[%emt 0:00:13][%mdl 64] Discovered Attack.  Weighted Error Value: White=0.60/Black=0.04 (flawless)} 0-1

[Event "16th HSG Open-A 2022"]
[Site "Hilversum"]
[Date "2022.06.19"]
[Round "6.6"]
[White "Becx, Cesar"]
[Black "Grutter, Tim"]
[Result "1/2-1/2"]
[ECO "B24"]
[WhiteElo "2101"]
[BlackElo "2241"]
[Annotator "TA"]
[PlyCount "74"]
[EventDate "2022.06.17"]
[EventCountry "NED"]
[SourceTitle "playchess.com"]
[Source "ChessBase"]
[SourceQuality "1"]
[TimeControl "6600+10"]

{[%evp 14,74,-21,-37,29,25,37,23,103,37,51,24,24,24,24,26,31,32,23,0,0,0,0,0,0,0,6,8,11,0,0,0,0,0,0,0,0,0,-2,-18,0,0,0,0,0,0,0,0,0,0,0,0,0,0,0,0,0,0,0,0,0,0,0]} 1. f4 {[%emt 0:00:01]} g6 {[%emt 0:00:03]} 2. Nf3 {[%emt 0:00:04]} Bg7 {[%emt 0:00:04]} 3. d3 {[%emt 0:00:18]} c5 {[%emt 0:00:33]} 4. g3 {[%emt 0:00:05]} e6 {[%emt 0:00:45]} 5. Bg2 {[%emt 0:00:04]} Ne7 {[%emt 0:00:03]} 6. O-O {[%emt 0:00:17]} Nbc6 {[%emt 0:01:06]} 7. Nc3 {[%emt 0:00:38]} d5 {[%emt 0:05:45]} 8. e4 {[%emt 0:02:52]} dxe4 {[%emt 0:03:12] B24: Closed Sicilian: 3 g3 sidelines.} (8... O-O $15) 9. dxe4 $11 {[%emt 0:03:46]} Qxd1 {[%emt 0:02:13]} 10. Rxd1 {[%emt 0:03:34] [#]} Nd4 $146 {[%emt 0:15:43] [#]} (10... Bxc3 $11 11. bxc3 O-O) ({Predecessor:} 10... a6 11. Na4 c4 12. Nb6 Rb8 13. e5 O-O 14. Nxc4 b5 15. Nd6 Nd5 16. Nxc8 Rbxc8 {1-0 (42) Chandler,M (1022)-Slavin,P (1087) LSS email 2014}) 11. Nxd4 {[%emt 0:11:31]} (11. Be3 $1 $16) 11... Bxd4+ $14 {[%emt 0:00:17]} 12. Kf1 {[%emt 0:01:08] Nb5 is the strong threat.} (12. Kh1 $5 {[%cal Rc3b5]}) 12... Bxc3 {[%emt 0:01:38]} 13. bxc3 {[%emt 0:00:04]} Bd7 {[%emt 0:16:37]} 14. c4 {[%emt 0:06:06]} O-O-O {[%emt 0:02:52]} 15. Bb2 {[%emt 0:00:05]} Rhe8 {[%emt 0:00:05]} 16. Bf6 {[%emt 0:00:59]} Ba4 {[%emt 0:01:27] The position is equal.} 17. Rxd8+ {[%emt 0:29:12]} Kxd8 {[%emt 0:00:18]} 18. Ke2 {[%emt 0:00:28]} Kc8 {[%emt 0:06:08]} 19. Kd3 {[%emt 0:24:27]} Rd8+ {[%emt 0:04:30]} 20. Kc3 {[%emt 0:00:24]} Rd7 {[%emt 0:00:09]} 21. Bxe7 {[%emt 0:00:18]} (21. Re1 {seems wilder.} Nc6 22. f5 Nd4 23. fxe6 Nxe6 24. Bh3) 21... Rxe7 $11 {[%emt 0:00:08][%mdl 4096] Endgame KRB-KRB} 22. e5 {[%emt 0:00:09]} Rd7 {[%emt 0:04:28]} 23. Bf3 {[%emt 0:06:14]} Kc7 {[%emt 0:00:41]} 24. Rd1 {[%emt 0:03:45]} Rxd1 {[%emt 0:00:07]} 25. Bxd1 {[%emt 0:00:05] KB-KB} Bc6 {[%emt 0:00:04]} 26. g4 {[%emt 0:04:23]} a6 {[%emt 0:08:23]} 27. Be2 {[%emt 0:04:28]} Be4 {[%emt 0:01:33]} 28. Bd3 {[%emt 0:00:50]} Bf3 {[%emt 0:00:53]} 29. g5 {[%emt 0:00:13]} Kb6 {[%emt 0:01:41]} 30. Kb3 {[%emt 0:01:17]} Ka5 {[%emt 0:02:38]} 31. Ka3 {[%emt 0:02:28]} Bc6 {[%emt 0:04:16]} 32. h4 {[%emt 0:01:07]} b5 {[%emt 0:01:39]} 33. cxb5 {[%emt 0:00:57]} axb5 {[%emt 0:01:35] [#] Strongly threatening ...c4.} 34. c4 {[%emt 0:00:30] Threatens to win with cxb5.} b4+ {[%emt 0:02:55]} 35. Kb2 {[%emt 0:00:47]} Bf3 {[%emt 0:00:53]} 36. Bf1 {[%emt 0:00:36]} Ka4 {[%emt 0:01:35]} 37. Bd3 {[%emt 0:00:13]} Ka5 {[%emt 0:19:23] Weighted Error Value: White=0.06 (flawless) /Black=0.14 (very precise)} 1/2-1/2

[Event "16th HSG Open-A 2022"]
[Site "Hilversum"]
[Date "2022.06.19"]
[Round "6.7"]
[White "Khabichev, Valeriy"]
[Black "De Groote, Ewoud"]
[Result "0-1"]
[ECO "C51"]
[WhiteElo "2075"]
[BlackElo "2230"]
[Annotator "TA"]
[PlyCount "88"]
[EventDate "2022.06.17"]
[EventCountry "NED"]
[SourceTitle "playchess.com"]
[Source "ChessBase"]
[SourceQuality "1"]
[TimeControl "6600+10"]

{[%evp 12,88,0,0,0,0,0,0,0,7,0,-33,-35,-68,-71,-118,-108,-194,-129,-150,-136,-113,-109,-103,-103,-104,-99,-227,-233,-285,-287,-375,-387,-535,-537,-533,-519,-545,-539,-535,-535,-519,-494,-491,-491,-479,-469,-490,-495,-503,-505,-496,-451,-443,-449,-452,-447,-460,-445,-513,-499,-653,-518,-516,-514,-546,-584,-596,-597,-589,-577,-574,-574,-725,-729,-700,-693,-739,-636]} 1. e4 {[%emt 0:00:06]} e5 {[%emt 0:00:20]} 2. Nf3 {[%emt 0:00:07]} Nc6 {[%emt 0:00:04]} 3. Bc4 {[%emt 0:00:17]} Bc5 {[%emt 0:00:55]} 4. b4 {[%emt 0:00:28]} Bxb4 {[%emt 0:03:00]} 5. c3 {[%emt 0:00:03]} Be7 {[%emt 0:02:26]} 6. d4 {[%emt 0:00:32]} Na5 {[%emt 0:03:12]} 7. Bd3 {[%emt 0:04:59]} d6 {[%emt 0:09:17] C51: Evans Gambit: Declined and Accepted without 5...Ba5.} 8. dxe5 {[%emt 0:06:23]} dxe5 {[%emt 0:10:33]} 9. Nxe5 {[%emt 0:02:06]} Nf6 {[%emt 0:07:58] The position is equal.} 10. O-O {[%emt 0:03:32]} O-O {[%emt 0:03:28]} 11. Qa4 {[%emt 0:05:27]} c5 {[%emt 0:09:05][%cal Oc5c4]} 12. Rd1 {[%emt 0:09:21]} Qc7 {[%emt 0:03:56] [#]} 13. Nf3 $146 {[%emt 0:05:23] [#]} ({White should try} 13. Nd2) ({Predecessor:} 13. f4 c4 14. Bc2 a6 15. Ba3 b5 16. Qxa5 Qxa5 17. Bxe7 Qb6+ 18. Rd4 Re8 19. Ba3 {0-1 (27) Howell,C (1954)-Okhai,S (2075) England 2017}) 13... c4 $1 $17 {[%emt 0:01:44]} 14. e5 {[%emt 0:13:22]} (14. Bf1 $17) 14... cxd3 {[%emt 0:05:22]} (14... Bd7 $19 15. Bxh7+ Kh8 16. Rxd7 Nxd7) 15. exf6 {[%emt 0:01:49]} Bxf6 {[%emt 0:00:04]} 16. Rxd3 {[%emt 0:07:05]} Qc4 {[%emt 0:11:24]} 17. Qxc4 {[%emt 0:04:12]} Nxc4 {[%emt 0:00:02]} 18. Nd4 {[%emt 0:05:18]} Re8 {[%emt 0:04:03][%cal Re8e1] [#]} 19. Bd2 {[%emt 0:08:21] Against Re1+. Now White is beyond hope.} (19. Nd2 $17) 19... Bd7 $19 {[%emt 0:02:34]} 20. h3 {[%emt 0:07:11]} Rad8 {[%emt 0:05:21][%cal Od7f5,Ba8d8,Bd8d4,Bd4d1,Bd1g1,Bg1h1,Bh1h3,Bh3f3][%mdl 32]} 21. g4 {[%emt 0:00:50]} Ba4 {[%emt 0:02:04]} 22. Rg3 {[%emt 0:05:17]} Bxd4 {[%emt 0:02:08] Black is clearly winning.} 23. cxd4 {[%emt 0:00:10]} Rxd4 {[%emt 0:01:49]} 24. Bc3 {[%emt 0:03:03]} Rd1+ {[%emt 0:00:07]} 25. Kh2 {[%emt 0:00:24]} Re2 {[%emt 0:02:52]} 26. Rg1 {[%emt 0:04:32]} Rxf2+ {[%emt 0:02:06]} 27. Kg3 {[%emt 0:00:07] Threatens to win with Rxd1.} Rxg1+ {[%emt 0:02:14]} 28. Kxf2 {[%emt 0:00:03]} Rh1 {[%emt 0:02:40]} 29. Be1 {[%emt 0:02:06]} Rxh3 {[%emt 0:02:02]} 30. Nc3 {[%emt 0:00:01]} Bc6 {[%emt 0:00:40]} 31. Rd1 {[%emt 0:00:01] Threatening mate with Rd8+.} Rf3+ {[%emt 0:00:33]} 32. Ke2 {[%emt 0:00:14] Rd8+ would kill now.} h6 {[%emt 0:02:42]} ({Don't blunder} 32... Re3+ $2 33. Kf2 $19) 33. Rd4 {[%emt 0:00:17]} Ne5 {[%emt 0:00:49]} 34. Bd2 {[%emt 0:00:53]} Rh3 {[%emt 0:01:16]} 35. Rd8+ {[%emt 0:02:25]} Kh7 {[%emt 0:00:01]} 36. g5 {[%emt 0:00:13]} Rh2+ {[%emt 0:00:50]} 37. Kd1 {[%emt 0:00:28]} Nf3 {[%emt 0:00:15]} 38. Be3 {[%emt 0:01:10]} hxg5 {[%emt 0:00:19][%cal Bh6g5,Bg5g4,Bg4g3][%mdl 32]} 39. Bxa7 {[%emt 0:00:02]} g4 {[%emt 0:00:58]} 40. Bb8 {[%emt 0:00:14]} Rh1+ {[%emt 0:00:39]} 41. Kc2 {[%emt 0:00:01]} Re1 {[%emt 0:00:44]} 42. Bg3 {[%emt 0:00:21]} Rg1 {[%emt 0:00:50]} 43. Bc7 {[%emt 0:00:19]} g3 {[%emt 0:00:34]} 44. Bb6 {[%emt 0:00:51]} Re1 {[%emt 0:00:13] Weighted Error Value: White=0.31/Black=0.10 (very precise)} 0-1